Cogmind - Beta 13 @@@ ROGUE MODE // 2024.03.31 @ 18:49:27 Player: stealthninja999 Result: Destroyed by C7-5WN(R) with Subdweller Beam Cannon Performance ------------- Evolutions (0) 0 Regions Visited (3) 600 Robots Destroyed (39) 195 Value Destroyed (774) 774 Prototype IDs (2) 40 Alien Tech Used (0) 0 Bonus (-74) -74 TOTAL SCORE: 1535 Bonus ------- Follower Combat Kills 80 Friendly Fire -154 Cogmind --------- Core Integrity 0/250 Matter 290/300 Energy 259/265 System Corruption 0% Temperature Warm (106) Movement Treading (360) Ox2 Location -10/Subcaves Parts ------- > --- POWER (1) -------- Reinforced Ion Engine > --- PROPULSION (2) --- Spiked Treads > --- UTILITY (2) ------ High-capacity Storage Unit Improved Targeting Computer > --- WEAPON (2) ------- Subdweller Laser Datajack > --- INVENTORY (20) --- Reinforced Ion Engine Light Treads Light Treads Light Treads Hover Unit Heat Sink Small Matter Pod (50) Improved Terrain Scanner Improved Targeting Computer Improved Targeting Computer Improved Targeting Computer Propulsion Shielding Weapon Shielding Scrap Shield Peak State ------------ > --- POWER ------------ Reinforced Ion Engine > --- PROPULSION ------- Light Treads Light Treads > --- UTILITY ---------- High-capacity Storage Unit Improved Terrain Scanner > --- WEAPON ----------- Beam Rifle Assault Rifle > --- INVENTORY -------- Reinforced Ion Engine Light Treads Light Treads Hover Unit Heat Sink Small Matter Pod Improved Targeting Computer Improved Targeting Computer Improved Targeting Computer Improved Targeting Computer Propulsion Shielding Weapon Shielding Light Armor Plating Light Assault Rifle Datajack [Rating: 13] Favorites ----------- Power Reinforced Ion Engine Engine Reinforced Ion Engine Propulsion Light Treads Treads Light Treads Wheel Wheel Utility High-capacity Storage Unit Device Improved Terrain Scanner Storage High-capacity Storage Unit Processor Transport Network Coupler Protection Light Armor Plating Weapon Assault Rifle Energy Gun Beam Rifle Ballistic Gun Assault Rifle Launcher Grenade Launcher Special Melee Weapon Datajack Build | -11 -10 -10 -10 ------- Run | Yrd Mat Min Sub Slots Evolved . | . . . . Power . | . . . . Propulsion . | . . . . Utility . | . . . . Weapon . | . . . . Parts Attached 30 | 8 13 4 5 Power 3 | 1 2 . . Engine 3 | 1 2 . . Core . | . . . . Reactor . | . . . . Propulsion 9 | 2 3 3 1 Treads 6 | . 2 3 1 Leg . | . . . . Wheel 3 | 2 1 . . Hover . | . . . . Flight . | . . . . Utility 8 | 3 3 . 2 Device 3 | 2 1 . . Storage 2 | 1 1 . . Processor 2 | . 1 . 1 Hackware . | . . . . Protection 1 | . . . 1 Artifact . | . . . . Weapon 10 | 2 5 1 2 Energy Gun 2 | . . 1 1 Energy Cannon . | . . . . Ballistic Gun 5 | 2 3 . . Ballistic Cannon . | . . . . Launcher 1 | . 1 . . Special Weapon . | . . . . Impact Weapon . | . . . . Slashing Weapon . | . . . . Piercing Weapon . | . . . . Special Melee Weapon 2 | . 1 . 1 Unidentified Prototypes . | . . . . Parts Lost 4 | . 1 . 3 Power . | . . . . Propulsion 1 | . . . 1 Utility 1 | . . . 1 Weapon 2 | . 1 . 1 Highest Loss Streak 2 | . 1 . 2 To Critical Strikes . | . . . . Average Slot Usage (%) 99 | . 98 100 100 Engine 14 | . 14 14 14 Treads 23 | . 16 28 28 Wheel 4 | . 11 . . Device 10 | . 11 14 . Storage 14 | . 14 14 14 Protection 2 | . . . 13 Energy Gun 5 | . . 5 14 Ballistic Gun 18 | . 19 22 6 Launcher 2 | . 6 . . Special Melee Weapon 1 | . . . 7 Naked Turns . | . . . . Heaviest Build 59 | 8 56 56 59 Greatest Support 40 | 20 40 40 40 Greatest Overweight (x) 2 | . 2 1 1 Average Overweight (x) 1 | . 1 1 1 Largest Inventory Capacity 20 | 5 20 20 20 Average Capacity 19 | 5 19 20 20 Most Carried 17 | 5 13 17 17 Average Carried 11 | 2 10 12 15 Final Capacity 20 | 5 20 20 20 Final Carried 15 | 5 11 14 15 Class Distribution -------------------- 100% | Mutant Dominant Class ---------------- Mutant | -10/Materials Mutant | -10/Mines Mutant | -10/Subcaves Resources | -11 -10 -10 -10 ----------- Run | Yrd Mat Min Sub Matter Collected 934 | 345 432 106 51 Remotely . | . . . . Salvage Created 1032 | 136 549 82 265 Parts 64 | 12 34 3 15 Haulers Intercepted 1 | . 1 . . Recyclers Shooed . | . . . . Parts Field Recycled . | . . . . Retrieved Matter . | . . . . Parts Self-Destructed 16 | . . . 16 Prevented . | . . . . Kills | -11 -10 -10 -10 ------- Run | Yrd Mat Min Sub Combat Hostiles Destroyed 22 | 1 12 2 7 Guns 14 | 1 4 2 7 AOE 8 | . 8 . . Classes Destroyed 10 | 3 6 . 1 Worker 4 | 1 3 . . Builder 1 | . 1 . . Tunneler 6 | 4 2 . . Hauler 1 | . 1 . . Recycler 1 | . 1 . . Operator 1 | . 1 . . Watcher 2 | . 2 . . Swarmer 7 | . 3 . 4 Grunt 12 | 1 9 2 . Subdweller 3 | . . . 3 Thug 1 | . . . 1 Best Kill Streak 6 | 4 6 2 4 Combat Bots Only 4 | 1 4 2 4 Max Kills in Single Turn 3 | 1 3 1 1 Gunslinging . | . . . . Exploded 2 | . 2 . . Melee . | . . . . Uniques/NPCs Destroyed . | . . . . Combat | -11 -10 -10 -10 -------- Run | Yrd Mat Min Sub Hostile Shots Fired 130 | 4 36 37 53 Missed 50 | . 17 9 24 Damage Taken 1411 | 42 397 331 641 Core 251 | . 112 41 98 Absorbed by Shields . | . . . . Regen/Repaired (Parts) 65 | . 65 . . Core Remaining (%) 100 | 100 . . . Volleys Fired 103 | 14 44 18 27 Largest 2 | 2 2 2 2 Hottest 80 | 40 50 76 80 Shots Fired 161 | 28 63 36 34 Gun 143 | 28 45 36 34 Cannon . | . . . . Launcher 18 | . 18 . . Special . | . . . . Kinetic 110 | 28 45 30 7 Thermal 33 | . . 6 27 Explosive 18 | . 18 . . Electromagnetic . | . . . . Robot Hit Streak 12 | 4 12 9 5 Robot Miss Streak 4 | 2 4 2 3 Penetration Max . | . . . . Secondary Targets . | . . . . Shots Hit Robots 97 | 16 35 26 20 Core Hits 65 | 7 39 7 12 Critical Kills . | . . . . Critical Parts Destroyed 1 | . 1 . . Critical Strikes 2 | . 1 . 1 Burn 1 | . . . 1 Destroy 1 | . 1 . . Melee Attacks . | . . . . Impact . | . . . . Slashing . | . . . . Piercing . | . . . . Sneak Attacks . | . . . . Combat Hostiles . | . . . . Follow-up Attacks . | . . . . Damage Inflicted 2175 | 179 1244 303 449 Guns 1269 | 179 338 303 449 Cannons . | . . . . Explosions 906 | . 906 . . Melee . | . . . . Ramming . | . . . . Kinetic 829 | 179 338 231 81 Thermal 440 | . . 72 368 Explosive 906 | . 906 . . Electromagnetic . | . . . . Impact . | . . . . Slashing . | . . . . Piercing . | . . . . Highest Corruption . | . . . . Average Corruption . | . . . . Corruption Purged . | . . . . Corruption Blocked . | . . . . Overload Shots . | . . . . Overflow Damage 33 | . 33 . . Projectiles . | . . . . Explosions 33 | . 33 . . Melee . | . . . . Knockbacks . | . . . . Impact . | . . . . Kinetic . | . . . . Secondary . | . . . . Self-Inflicted Damage 173 | . 173 . . Shots 4 | . 4 . . Rammed . | . . . . Targets Rammed . | . . . . Kicked . | . . . . Crushed . | . . . . Highest Temperature 299 | 6 27 164 299 Average Temperature 64 | 6 12 56 154 Received Heat Transfer 752 | 24 99 186 443 Siege Activations . | . . . . Robots Corrupted . | . . . . Combat Hostiles . | . . . . Parts Fried . | . . . . Impact Corruptions . | . . . . Robots Melted . | . . . . Combat Hostiles . | . . . . Parts Melted 1 | . . . 1 Heat Transferred 758 | . . 185 573 Parts Sabotaged . | . . . . Parts Stolen . | . . . . Parts Stripped . | . . . . Power Chain Reactions . | . . . . Alert | -11 -10 -10 -10 ------- Run | Yrd Mat Min Sub Peak Influence 388 | 45 388 92 . Initial 92 | . 29 92 . Average 131 | 24 256 45 . Maximum Alert Level 1 | . 1 . . Low Security (%) 66 | 100 18 100 . Level 1 33 | . 81 . . Level 2 . | . . . . Level 3 . | . . . . Level 4 . | . . . . Level 5 . | . . . . High Security . | . . . . Max Security . | . . . . Squads Dispatched 4 | . 3 1 . Investigation 2 | . 1 1 . Extermination . | . . . . Reinforcement 2 | . 2 . . Assault . | . . . . Garrison . | . . . . Intercept . | . . . . Searches Triggered . | . . . . Construction Impeded . | . . . . Haulers Reinforced . | . . . . Active Scanning Responses . | . . . . Cargo Convoy Interrupts . | . . . . Stealth | -11 -10 -10 -10 --------- Run | Yrd Mat Min Sub Distress Signals . | . . . . Communications Jammed . | . . . . Distress Signals . | . . . . Times Spotted 63 | 1 18 5 39 Peak Tracking Total 7 | 1 4 2 7 Tactical Retreats 2 | . . . 2 Traps | -11 -10 -10 -10 ------- Run | Yrd Mat Min Sub Traps Triggered 2 | . 1 . 1 Indirectly . | . . . . Trap Hack Attempts . | . . . . Triggered . | . . . . Disarmed . | . . . . Reprogrammed . | . . . . Reused . | . . . . Traps Extracted . | . . . . Installed . | . . . . Triggered . | . . . . Machines | -11 -10 -10 -10 ---------- Run | Yrd Mat Min Sub Machines Disabled 3 | . 3 . . Max in Single Turn 2 | . 2 . . Machines Repaired . | . . . . Machines Dismantled . | . . . . Machines Sabotaged . | . . . . Overloaded Fab Kills . | . . . . Hacking | -11 -10 -10 -10 --------- Run | Yrd Mat Min Sub Machines Accessed 4 | . 3 1 . Terminals 3 | . 2 1 . Fabricators . | . . . . Repair Stations 1 | . 1 . . Recycling Units . | . . . . Scanalyzers . | . . . . Garrison Access . | . . . . Total Hacks 12 | . 9 3 . Successful 8 | . 6 2 . Failed 4 | . 3 1 . Catastrophic . | . . . . Database Lockouts . | . . . . Manual . | . . . . Terminals 9 | . 6 3 . Fabricators . | . . . . Repair Stations 3 | . 3 . . Recycling Units . | . . . . Scanalyzers . | . . . . Garrison Access . | . . . . Terminal Hacks 6 | . 4 2 . Record 3 | . 1 2 . Prototype ID Bank 1 | . 1 . . Alert Level 1 | . 1 . . Reinforcement Status 1 | . 1 . . Fabricator Hacks . | . . . . Repair Station Hacks 2 | . 2 . . Scan Component 1 | . 1 . . Repair 1 | . 1 . . Recycling Unit Hacks . | . . . . Scanalyzer . | . . . . Garrison Access Hacks . | . . . . Unauthorized Hacks . | . . . . Terminals . | . . . . Fabricators . | . . . . Repair Stations . | . . . . Recycling Units . | . . . . Scanalyzers . | . . . . Garrison Access . | . . . . Data Cores Recovered . | . . . . Used . | . . . . Hacking Detections 3 | . 2 1 . Full Trace Events 1 | . . 1 . Feedback Events . | . . . . Feedback Blocked . | . . . . Robot Schematics Acquired . | . . . . Robots Built . | . . . . Authchips . | . . . . Time . | . . . . Total Robot Build Rating . | . . . . Part Schematics Acquired . | . . . . Parts Built . | . . . . Authchips . | . . . . Time . | . . . . Total Part Build Rating . | . . . . Parts Repaired 1 | . 1 . . Time 26 | . 26 . . Parts Recycled . | . . . . Recycled Matter . | . . . . Retrieved Matter . | . . . . Retrieved Components . | . . . . Parts Scanalyzed . | . . . . Part Schematics Acquired . | . . . . Parts Damaged . | . . . . Bothacking | -11 -10 -10 -10 ------------ Run | Yrd Mat Min Sub Used RIF Installer . | . . . . Robots Hacked . | . . . . Non-combat . | . . . . Combat . | . . . . Robot Hacks Applied . | . . . . Relay Couplers Released . | . . . . Fabnet Peak Effective % . | . . . . Robots Rewired . | . . . . Allies Hacked . | . . . . Hacks Repelled . | . . . . Allies | -11 -10 -10 -10 -------- Run | Yrd Mat Min Sub Total Allies 2 | . . 2 . Largest Group 2 | . . 2 1 Highest-Rated Group 53 | . . 53 31 Highest-Rated Ally 31 | . . 31 31 Total Orders . | . . . . Ally Attacks 22 | . . 10 12 Total Damage 255 | . . 106 149 Kills 3 | . . 2 1 Allies Corrupted . | . . . . Allies Melted . | . . . . Intel | -11 -10 -10 -10 ------- Run | Yrd Mat Min Sub Robot Analysis Total . | . . . . Derelict Logs Recovered 1 | . . 1 . Drone Launches . | . . . . Drone Recoveries . | . . . . Exploration | -11 -10 -10 -10 ------------- Run | Yrd Mat Min Sub Turns Passed 3156 | 178 1105 1377 496 Spaces Moved 1443 | 152 573 545 173 Core 19 | 19 . . . Treads 965 | . 247 545 173 Legs . | . . . . Wheels 459 | 133 326 . . Hover . | . . . . Flight . | . . . . Fastest Speed 50 | 50 80 240 240 Average Speed 193 | 76 165 240 243 Slowest Speed 250 | 80 240 240 250 Overloaded Moves . | . . . . Propulsion Burnouts . | . . . . Robots Hopped . | . . . . Cave-ins Triggered . | . . . . Exploration Rate (%) 45 | 5 69 86 21 Regions Visited 3 Branch Regions 2 Pre-discovered Areas 1 | . . 1 . Known Exits Taken . | . . . . Unknown Exits Taken 3 | 1 1 1 . Scrap Searched 1 | . . 1 . Spaces Dug . | . . . . Terrain Destroyed 137 | . 137 . . Melee . | . . . . Projectile . | . . . . AOE 137 | . 137 . . Terrain Rammed . | . . . . Walls Destroyed . | . . . . Machines Disabled . | . . . . Actions | -11 -10 -10 -10 --------- Run | Yrd Mat Min Sub Total 1652 | 189 668 583 212 Wait 14 | . 5 7 2 Move 1440 | 151 572 544 173 Hop . | . . . . Pick Up 44 | 14 21 6 3 Fast Attach . | . . . . Attach 17 | 7 4 3 3 Detach 2 | . . 1 1 Swap 13 | 1 9 1 2 Drop 19 | 2 13 3 1 Fire 103 | 14 44 18 27 Melee . | . . . . Ram . | . . . . Kick . | . . . . Crush . | . . . . Escape Stasis . | . . . . Rewire . | . . . . Trap . | . . . . Miscellaneous . | . . . . Route ------- -11/Scrapyard -10/Materials (discovered 3 exits: [*Mat x2] / *Min) -10/Mines (discovered 3 exits: [*Mat x2] / [*Sub]) -10/Subcaves (discovered 2 exits: [*Mat] / [*Rec]) History --------- Turn | Location | Event 2 | -11/Scrapyard | Met Revision 17 60 | -11/Scrapyard | Discovered new exit (range 8) 179 | -11/Scrapyard | Entered Materials 306 | -10/Materials | Discovered new exit (range 15) 308 | -10/Materials | Build established: Mutant 435 | -10/Materials | Discovered new exit (range 15) 775 | -10/Materials | Repaired Assault Rifle 1000 | -10/Materials | Discovered new exit (range 16) 1284 | -10/Materials | Entered Mines 1457 | -10/Mines | Discovered new exit (range 15) 1701 | -10/Mines | Core integrity fell below 50% 1937 | -10/Mines | Discovered new exit (range 16) 2016 | -10/Mines | Joined a pair of Derelicts in attacking an 0b10 outpost 2502 | -10/Mines | Discovered new exit (range 14) 2661 | -10/Mines | Entered Subcaves 2661 | -10/Subcaves | Accompanied by 2 allies 2663 | -10/Subcaves | Ambushed by Subdwellers from Twisted Machinery 2666 | -10/Subcaves | Led the pair of lost Derelicts to an unsafe place 2820 | -10/Subcaves | Shifting Twisted Machinery released Sub. Laser 2910 | -10/Subcaves | Ambushed by swarm of Subdwellers 2913 | -10/Subcaves | Ambushed by Subdwellers from Twisted Machinery 2948 | -10/Subcaves | Discovered new exit (range 15) 2957 | -10/Subcaves | Lost 3 allies 2972 | -10/Subcaves | Discovered new exit (range 16) 3112 | -10/Subcaves | Core integrity fell below 20% 3157 | -10/Subcaves | Destroyed by C7-5WN(R) with Subdweller Beam Cannon Last Messages --------------- 02972_ EXIT=FOUND 02975_ A6-Q7A(g) destroyed. 02981_ S-10 Pest destroyed. 02983_ Subatomizers dissect the Sub. Power Source. 02983_ S-10 Pest destroyed. 02985_ Lgt. Ion Engine fries itself beyond repair. 02985_ 8M-CN2(g) destroyed. [Achievement: Backstab] 02987_ S-10 Pest destroyed. 02991_ Lgt. Ion Engine fries itself beyond repair. 02992_ Lgt. Assault Rifle fries itself beyond repair. 02998_ Subatomizers dissect the Sub. Power Source. 03045_ Subatomizers dissect the Imp. Heat Sink. 03111_ Triggered Piercing Trap. 03111_ Spikes shoot up from the floor. 03111_ Critical hit (Impale). 03138_ Critical hit (Meltdown: +290). 03142_ Lgt. Armor Plating destroyed. 03157_ Lgt. Treads destroyed. [Achievement: First Step to Greatness] Map ----- +----------------------------------------------------+ | !%#" #?????????????###??????????????????????????? | | &"## "#???????????#??????????????????????????????? | | """ " #?????????????????????????????????????????? | | "" """ #?????????????????????????????????????????? | | " "" ????????????????????????????????????????? | | "" ???????????????????????????????????????? | | ## "" ### ??????????????????????????????????????? | | #? ""???????????????????????????????????????????? | | #?# "#???????????????????????????????????????????? | | #??#"#???????????????????????????????????????????? | | ###?????? ??????????????????????????????????????? | | #????? ?????????????????????????????????????? | | #???? ????????????????????????????????????? | | #??? ?????????????????????????????????????? | | #??# ???????????????????????????????????????? | | % #?# #????????????????????????????????????????? | | ## #??????#####??????????????????????????????? | | #?????### ####??##???????????#???????????? | | ##?????# ^ ### #####????## #??????????? | | ######?# ???? ??????????? | | #??#^ ^ ????? #??????????? | | ##???#^ #???? ????????????? | | ####????# ???? R #??????????????? | | ### ##???????# ###### R #??????????????? | | #?? #??#?????# ## #????????????????? | | #?? ##? """??# @ #???????????????????? | | #??##? "??# #???????????????????? | | #??### "?## # # #??????????????????? | | ### ""## ^ ### ## ##??????????????????? | | % # <# #?# ##?####???????????????????? | | !% ""?# ### #?????????????????????????? | | % % # "?## ## #????????????????????????? | | # #??? ???# # ##????????????????????????? | | # #????????# ### #????????????????????????? | | # ###????#### #?# ##????????????????????????? | | #????# ## ##???????????????????????? | | #????# #???????????????????????? | | ####???## #???????????????????????? | | ##?????## ####???????????????????????? | | #?###?## ###??????????????????????????? | | ### ### ##????????????????????????????? | | " #?????????????????????????????? | | # ## #????????????????????????????? | | ### #% #### % ????????????????????????? | | ??#########??# ??????????????????????? | | ????????????? #??????????????????????? | | ????????????? % #??????????????????????? | | ???????????? ## ??????????????????????? | | ???????????? #?? ??????????????????????? | | ????????????##??? ??????????????????????? | +----------------------------------------------------+ Best States ------------- Heat Dissipation 35 Energy Generation 12 Energy Capacity 265 Matter Stores 350 Matter Capacity 350 Sight Range 16 Terrain Scan Range 16 Terrain Scan Density 10 Armor Coverage 150 Evasion (%) 50 Targeting Accuracy 6 Recoil Reduction 2 Item Schematics ----------------- None Robot Schematics ------------------ None Fabricated ------------ Nothing Alien Tech Used ----------------- None Achievements -------------- Backstab Crack Shot First Step to Greatness Loot Pinata One Hack Too Far Part-time Mechanic Uninvited Guest Challenges ------------ None Game ------ Seed CompactBiomechanicalKit Manual? 0 Play Time 01:01:43 Cumulative 1.0 hours Start 2024.03.31 @ 17:12:34 End 2024.03.31 @ 18:49:27 Sessions 1 Manual Loads 0 Difficulty Rogue Special Mode None Game No. 1 Rogue 1 Adventurer 0 Explorer 0 Win Type - Total 0 Types 0/0/0/0/0/0/0/0/0 Lore% 0 Gallery% 2 Achievement% 2 Wizard Run 0 Options --------- Layout 1 ASCII 0 Keyboard 0 Movement Mouse Keybinds 0 Fullscreen 1 Font 32/SmallcapsGlow Map View 130x35 Zoom Use 0% Tactical HUD 1 Map Filters NONE Filters NONE Steam 1 RUN: 8a791a8c-6d9d-4ecb-906b-915146a3ba0f